bitfinex/quotes_SOLUSD_20250722
["timestamp","ask_amount","ask_price","bid_price","bid_amount"]
[1753213575025,13.42267725,199.62,199.56,0.03]
[1753213575201,31.00936379,199.63,199.57,12.70267725]
[1753213575202,26.0,199.63,199.57,12.70267725]
[1753213575407,26.0,199.63,199.6,12.70267725]
[1753213576008,26.0,199.63,199.59,12.70267725]
[1753213576534,26.0,199.63,199.59,13.38267725]
[1753213576723,26.0,199.63,199.6,12.70267725]
[1753213577214,26.0,199.63,199.6,8.42940528]
[1753213577417,5.00851671,199.66,199.62,8.42940528]
[1753213577621,5.00782398,199.69,199.64,8.42940528]
[1753213578017,5.67782398,199.69,199.64,8.42940528]
[1753213578217,0.67,199.69,199.64,8.42940528]
[1753213578421,0.67,199.69,199.65,8.42940528]
[1753213578617,5.0075301,199.7,199.63,0.69]
[1753213578818,13.43693538,199.7,199.64,8.42940528]
[1753213579008,14.10693538,199.7,199.64,8.42940528]
[1753213579240,14.10693538,199.7,199.58,17.53682733]
[1753213579427,8.42940528,199.68,199.62,8.42940528]
[1753213579745,5.00826363,199.67,199.62,8.42940528]
[1753213579911,5.67826363,199.67,199.62,8.42940528]
[1753213580119,8.42940528,199.65,199.59,8.42940528]
[1753213580816,0.67,199.66,199.57,24.6233]
[1753213580817,0.67,199.66,199.6,8.42940528]
[1753213581016,5.00876533,199.65,199.6,8.42940528]
[1753213581235,5.67876533,199.65,199.6,8.42940528]
[1753213581747,5.67876533,199.65,199.58,5.01047023]
[1753213581948,5.67876533,199.65,199.6,8.42940528]
[1753213582240,0.67,199.64,199.6,8.42940528]
[1753213582439,26.0,199.67,199.61,8.42940528]
[1753213582651,26.0,199.67,199.64,8.42940528]
[1753213582944,31.67832961,199.67,199.62,8.42940528]
[1753213583108,26.0,199.67,199.63,8.42940528]
[1753213583822,26.0,199.67,199.61,5.69974919]
[1753213583823,0.67,199.69,199.64,8.42940528]
[1753213584146,0.67,199.74,199.65,0.69]
[1753213584351,0.67,199.74,199.69,8.42940528]
[1753213584529,0.67,199.74,199.7,8.42940528]
[1753213584923,0.67,199.74,199.69,8.42940528]
[1753213586024,5.67658621,199.74,199.69,8.42940528]
[1753213586230,5.00631244,199.75,199.7,8.42940528]
[1753213586447,9.09940528,199.74,199.68,8.42940528]
[1753213586942,8.42940528,199.72,199.65,22.22]
[1753213587148,9.09940528,199.71,199.65,30.64940528]
[1753213587314,9.09940528,199.71,199.65,22.22]
[1753213587519,9.09940528,199.71,199.65,30.64940528]
[1753213588023,5.00751126,199.7,199.65,30.64940528]
[1753213588220,5.67751126,199.7,199.65,30.64940528]
[1753213588438,26.67,199.75,199.66,0.69]
[1753213588670,0.67,199.74,199.65,22.22]
[1753213588839,0.67,199.74,199.68,8.42940528]
[1753213589139,9.09940528,199.74,199.68,8.42940528]
[1753213589918,8.42940528,199.76,199.7,8.42940528]
[1753213590118,5.00600998,199.76,199.72,8.42940528]
[1753213590338,0.67,199.76,199.72,8.42940528]
[1753213590550,0.67,199.75,199.71,8.42940528]
[1753213590939,0.67,199.74,199.69,8.42940528]
[1753213591125,0.67,199.73,199.69,8.42940528]
[1753213591652,0.67,199.75,199.7,8.42940528]
[1753213592543,5.67637997,199.75,199.7,8.42940528]
[1753213592748,14.10578525,199.75,199.7,8.42940528]
[1753213592925,8.42940528,199.71,199.62,7.0643]
[1753213593120,8.42940528,199.7,199.64,8.42940528]
[1753213593947,5.00762389,199.7,199.64,8.42940528]
[1753213594119,5.00762389,199.7,199.62,7.0643]
[1753213594120,0.67,199.71,199.65,8.42940528]
[1753213594432,0.67,199.71,199.66,8.42940528]
[1753213594636,9.09940528,199.71,199.65,8.42940528]
[1753213594843,0.67,199.7,199.65,8.42940528]
[1753213595337,0.67,199.7,199.65,9.11940528]
[1753213595925,5.67759188,199.7,199.65,9.11940528]
[1753213596852,14.10699716,199.7,199.65,9.11940528]
[1753213597220,8.42940528,199.68,199.62,6.3743]
[1753213597421,0.67,199.69,199.65,8.42940528]
[1753213597665,26.0,199.71,199.67,8.42940528]
[1753213598021,0.67,199.7,199.64,0.69]
[1753213598223,0.67,199.7,199.65,8.42940528]
[1753213598452,0.67,199.7,199.66,8.42940528]
[1753213598832,31.00748859,199.71,199.67,8.42940528]
[1753213599157,31.67748859,199.71,199.66,8.42940528]
[1753213599452,0.67,199.76,199.7,8.42940528]
[1753213599621,0.67,199.76,199.72,8.42940528]
[1753213599822,26.0,199.75,199.72,8.42940528]
[1753213600034,0.67,199.76,199.72,8.42940528]
[1753213600251,26.0,199.75,199.72,8.42940528]
[1753213600454,26.0,199.75,199.7,8.42940528]
[1753213600669,9.09940528,199.74,199.66,0.69]
[1753213600855,13.4361644,199.73,199.67,8.42940528]
[1753213601065,0.67,199.72,199.67,8.42940528]
[1753213601240,0.67,199.71,199.63,0.69]
[1753213601440,26.0,199.7,199.65,8.42940528]
[1753213601645,26.0,199.7,199.62,6.3743]
[1753213601646,8.42940528,199.68,199.62,6.3743]
[1753213601947,8.42940528,199.68,199.62,8.42940528]
[1753213602464,0.67,199.69,199.63,8.42940528]
[1753213602669,9.09940528,199.69,199.63,8.42940528]
[1753213603039,0.67,199.72,199.66,8.42940528]
[1753213603245,26.67,199.72,199.64,0.69]
[1753213603460,35.09940528,199.72,199.67,8.42940528]
[1753213603781,35.09940528,199.72,199.64,0.69]
[1753213603940,34.42940528,199.72,199.64,0.69]
[1753213604143,14.1066658,199.71,199.65,8.42940528]
[1753213604851,5.67726052,199.71,199.66,8.42940528]
[1753213605057,5.00726052,199.71,199.64,0.69]
[1753213605270,0.67,199.7,199.65,8.42940528]
[1753213605765,0.67,199.7,199.66,8.42940528]
[1753213605963,0.67,199.7,199.64,0.69]
[1753213606175,5.00726795,199.71,199.66,8.42940528]
[1753213606540,5.67726795,199.71,199.66,8.42940528]
[1753213607169,5.67726795,199.71,199.64,5.69887971]
[1753213607340,5.67726795,199.71,199.66,8.42940528]
[1753213607783,22.87,199.75,199.69,8.42940528]
[1753213607950,31.29940528,199.75,199.69,8.42940528]
[1753213608148,31.29940528,199.75,199.67,0.69]
[1753213608374,31.29940528,199.75,199.68,8.42940528]
[1753213608576,8.42940528,199.73,199.66,8.42940528]
[1753213608783,8.42940528,199.7,199.61,5.00970271]
[1753213608973,8.42940528,199.67,199.6,22.18]
[1753213609271,5.00901622,199.64,199.6,22.18]
[1753213609586,9.11940528,199.63,199.57,8.42940528]
[1753213609759,8.42940528,199.62,199.56,8.45940528]
[1753213610148,0.69,199.61,199.56,8.45940528]
[1753213610375,0.69,199.6,199.56,8.45940528]
[1753213610752,0.69,199.6,199.56,0.03]
[1753213611357,5.0095316,199.62,199.57,8.42940528]
[1753213611680,5.0095316,199.62,199.57,9.11940528]
[1753213612564,5.0095316,199.62,199.57,0.69]
[1753213612771,5.6995316,199.62,199.57,9.11940528]
[1753213612968,14.12893688,199.62,199.57,0.69]
[1753213613168,0.69,199.61,199.56,8.45940528]
[1753213613382,5.01002004,199.6,199.56,8.45940528]
[1753213613756,5.70002004,199.6,199.56,0.03]
[1753213614071,8.42940528,199.58,199.56,0.03]
[1753213614275,0.69,199.59,199.56,0.03]
[1753213614476,9.11940528,199.57,199.56,0.03]
[1753213614849,0.69,199.57,199.56,0.03]
[1753213615160,9.11940528,199.57,199.56,0.03]
[1753213615362,14.13017844,199.57,199.56,0.03]
[1753213616254,5.70077316,199.57,199.56,0.03]
[1753213616760,14.13017844,199.57,199.56,0.03]
[1753213616962,5.70077316,199.57,199.56,0.03]
[1753213617481,14.13017844,199.57,199.56,0.03]
[1753213617679,5.84293473,199.57,199.56,0.03]
[1753213617978,14.27234001,199.57,199.56,0.03]
[1753213618553,26.0,199.54,199.52,0.03]
[1753213618748,30.66940528,199.53,199.52,0.03]
[1753213618952,31.35940528,199.53,199.52,0.03]
[1753213619404,17.54473907,199.49,199.37,13.44519567]
[1753213619577,48.93,199.48,199.37,5.01579039]
[1753213619878,8.42940528,199.47,199.38,0.69]
[1753213620181,48.24,199.48,199.38,0.69]
[1753213620492,7.20869597,199.53,199.46,8.42940528]
[1753213620659,1.5069,199.58,199.5,8.42940528]
[1753213620856,8.42940528,199.57,199.51,8.42940528]
[1753213621051,8.42940528,199.54,199.48,8.42940528]
[1753213621279,8.42940528,199.5,199.43,0.69]
[1753213621466,8.42940528,199.46,199.39,0.69]
[1753213621661,8.42940528,199.43,199.37,8.42940528]
[1753213622401,8.42940528,199.41,199.36,8.18638375]
[1753213622559,22.24,199.48,199.4,8.42940528]
[1753213622755,5.70177767,199.53,199.45,8.42940528]
[1753213622951,5.70177767,199.53,199.46,8.42940528]
[1753213623166,16.57692207,199.53,199.47,8.42940528]
[1753213623375,16.57692207,199.53,199.48,13.44241726]
[1753213623376,3.13573912,199.53,199.48,13.44241726]
[1753213623564,9.11940528,199.56,199.5,8.42940528]
[1753213624161,13.44020432,199.57,199.48,5.70301198]
[1753213624363,13.44020432,199.57,199.51,8.42940528]
[1753213624863,8.42940528,199.56,199.51,8.42940528]
[1753213625069,13.44046854,199.56,199.51,8.42940528]
[1753213625274,8.42940528,199.54,199.47,6.3559]
[1753213625585,8.42940528,199.52,199.45,2.3096]
[1753213625780,8.42940528,199.51,199.43,5.01405807]
[1753213625983,8.42940528,199.5,199.43,5.70405807]
[1753213626218,8.42940528,199.5,199.44,8.42940528]
[1753213626382,8.42940528,199.5,199.43,0.69]
[1753213626561,8.42940528,199.45,199.38,0.69]
[1753213626758,0.69,199.49,199.38,5.70554533]
[1753213626759,8.42940528,199.46,199.38,5.70554533]
[1753213626958,8.42940528,199.43,199.37,6.3798]
[1753213627265,8.42940528,199.4,199.36,0.24298375]
[1753213627468,5.01479364,199.41,199.36,0.24298375]
[1753213627469,8.42940528,199.39,199.36,0.24298375]
[1753213628003,38.53558937,199.44,199.36,0.24298375]
[1753213628004,14.13398961,199.42,199.36,8.67238903]
[1753213628292,8.42940528,199.41,199.36,0.24298375]
[1753213628469,8.42940528,199.41,199.3,16.6503]
[1753213628470,26.0,199.39,199.3,0.69]
[1753213628693,5.01353654,199.46,199.35,0.69]
[1753213628897,39.44294182,199.46,199.36,6.3798]
[1753213629196,8.42940528,199.4,199.36,6.3798]
[1753213629398,8.42940528,199.37,199.31,6.3798]
[1753213629578,8.42940528,199.34,199.28,9.11940528]
[1753213629792,8.42940528,199.32,199.22,0.69]
[1753213630003,8.42940528,199.29,199.2,6.62297892]
[1753213630191,8.42940528,199.28,199.21,8.42940528]
[1753213630516,8.42940528,199.27,199.2,6.62297892]
[1753213630705,8.42940528,199.26,199.2,0.24317892]
[1753213630880,8.42940528,199.24,199.2,0.24317892]
[1753213631078,8.42940528,199.23,199.2,0.24317892]
[1753213631385,13.46388272,199.22,199.2,0.24317892]
[1753213631587,0.69,199.21,199.2,0.24317892]
[1753213631984,13.46388272,199.21,199.18,330.02720478]
[1753213632178,0.69,199.21,199.18,330.02720478]
[1753213632380,12.77388272,199.19,199.18,330.02720478]
[1753213632576,5.01919067,199.24,199.18,330.02720478]
[1753213632876,34.98572259,199.28,199.18,343.4910875]
[1753213632877,26.0,199.27,199.18,343.4910875]
[1753213633202,31.02008428,199.2,199.18,330.02720478]
[1753213633411,0.69,199.19,199.18,330.02720478]
[1753213633782,13.46388272,199.19,199.18,330.02720478]
[1753213633975,42.45618272,199.19,199.18,276.44218389]
[1753213634194,42.57834429,199.19,199.18,276.44218389]
[1753213634515,7.36446157,199.19,199.18,276.44218389]
[1753213634807,12.77388272,199.19,199.18,276.44218389]
[1753213634987,28.06934246,199.23,199.18,276.44218389]
[1753213635191,0.59,199.22,199.18,276.44218389]
[1753213635512,0.59,199.26,199.18,276.44218389]
[1753213635687,23.09,199.3,199.21,12.77388272]
[1753213635880,4.30254983,199.34,199.23,12.77388272]
[1753213636208,0.59,199.34,199.25,12.77388272]
[1753213636386,12.77388272,199.34,199.28,12.77388272]
[1753213636707,12.77388272,199.37,199.31,12.77388272]
[1753213636908,26.0,199.34,199.29,0.69]
[1753213637113,12.540283,199.4,199.32,12.77388272]
[1753213637293,12.77388272,199.39,199.33,17.79068902]
[1753213637511,12.540283,199.4,199.33,5.0168063]
[1753213637712,12.540283,199.4,199.33,5.6968063]
[1753213637912,25.31416572,199.4,199.34,12.77388272]
[1753213638219,25.31416572,199.4,199.33,0.68]
[1753213638220,38.540283,199.4,199.33,0.68]
[1753213638419,12.77388272,199.35,199.28,13.45388272]
[1753213638734,26.0,199.37,199.28,13.45388272]
[1753213638923,26.0,199.36,199.3,12.77388272]
[1753213639306,38.77388272,199.36,199.3,12.77388272]
[1753213639507,26.0,199.36,199.31,12.77388272]
[1753213639899,26.0,199.36,199.28,5.69782817]
[1753213640110,12.77388272,199.37,199.31,12.77388272]
[1753213640729,12.77388272,199.36,199.3,12.77388272]
[1753213641028,12.77388272,199.35,199.28,0.68]
[1753213641338,26.0,199.36,199.31,12.77388272]
[1753213641541,26.0,199.35,199.31,12.77388272]
[1753213641709,0.5,199.34,199.3,12.77388272]
[1753213641908,0.5,199.34,199.32,12.77388272]
[1753213642120,0.5,199.34,199.31,12.77388272]
[1753213642322,0.5,199.34,199.3,0.68]
[1753213642525,0.5,199.34,199.31,12.77388272]
[1753213643511,0.5,199.34,199.27,0.68]
[1753213643808,0.5,199.34,199.31,12.77388272]
[1753213644020,0.5,199.34,199.33,12.77388272]
[1753213644211,16.34084954,199.42,199.33,12.77388272]
[1753213644423,12.77388272,199.42,199.37,12.77388272]
[1753213644735,38.77388272,199.41,199.35,12.77388272]
[1753213644934,26.0,199.41,199.36,12.77388272]
[1753213645139,12.77388272,199.42,199.36,0.68]
[1753213645439,12.77388272,199.41,199.36,0.68]
[1753213645639,12.77388272,199.4,199.35,12.77388272]
[1753213645943,12.77388272,199.41,199.35,13.45388272]
[1753213646347,12.77388272,199.41,199.35,0.68]
[1753213646511,12.77388272,199.41,199.36,12.77388272]
[1753213646839,2.61779538,199.46,199.39,12.77388272]
[1753213647015,0.59,199.47,199.4,12.77388272]
[1753213647219,12.77388272,199.46,199.4,12.77388272]
[1753213647435,16.34827006,199.45,199.39,0.68]
[1753213647645,3.57597005,199.44,199.39,13.45388272]
[1753213647827,16.34985277,199.45,199.39,13.45388272]
[1753213648016,3.57597005,199.44,199.39,13.45388272]
[1753213648339,3.57597005,199.44,199.35,16.78468397]
[1753213648341,3.71660141,199.48,199.35,16.78468397]
[1753213648342,3.71660141,199.48,199.42,12.77388272]
[1753213648343,5.01303388,199.48,199.42,12.77388272]
[1753213648536,17.7869166,199.48,199.42,12.77388272]
[1753213648783,26.0,199.45,199.4,23.12]
[1753213649041,17.7869166,199.48,199.37,7.6412]
[1753213649042,12.77388272,199.43,199.37,1.5393]
[1753213649338,12.77388272,199.42,199.37,1.5393]
[1753213649641,17.78826058,199.43,199.37,14.99318272]
[1753213649820,17.78826058,199.43,199.38,0.68]
[1753213650020,5.01437786,199.43,199.37,14.31318272]
[1753213650342,12.77388272,199.41,199.35,13.45388272]
[1753213650912,12.77388272,199.41,199.35,0.68]
[1753213651133,12.77388272,199.38,199.31,6.7819]
[1753213651356,26.0,199.4,199.34,12.77388272]
[1753213651357,38.77388272,199.4,199.34,12.77388272]
[1753213651540,8.59754189,199.39,199.34,12.77388272]
[1753213651858,0.5,199.37,199.35,0.68]
[1753213652031,8.59831811,199.39,199.35,0.68]
[1753213652546,3.58534159,199.38,199.37,12.77388272]
[1753213652749,12.77388272,199.43,199.37,12.77388272]
[1753213652944,12.77388272,199.41,199.35,13.45388272]
[1753213653248,3.58642406,199.4,199.31,6.7819]
[1753213653451,17.78943091,199.38,199.32,22.42]
[1753213653624,3.58642406,199.37,199.32,35.19388272]
[1753213653826,3.58642406,199.36,199.32,35.87388272]
[1753213654024,3.58642406,199.37,199.34,12.77388272]
[1753213654227,25.65611141,199.48,199.35,0.68]
[1753213654450,12.77388272,199.46,199.4,12.77388272]
[1753213654752,3.59206686,199.45,199.41,12.77388272]
[1753213654959,3.59206686,199.44,199.41,12.77388272]
[1753213655160,3.59206686,199.43,199.42,13.45388272]
[1753213655325,5.0132852,199.47,199.42,8.44400472]
[1753213655326,3.59206686,199.46,199.42,8.44400472]
[1753213655526,3.59206686,199.45,199.44,8.44400472]
[1753213655753,3.59206686,199.45,199.44,9.12400472]
[1753213656153,5.01253132,199.5,199.44,9.12400472]
[1753213656344,3.59206686,199.49,199.46,8.44400472]
[1753213656523,5.01253132,199.5,199.46,8.44400472]
[1753213656524,3.59206686,199.48,199.46,8.44400472]
[1753213656722,3.59206686,199.47,199.43,16.78468397]
[1753213656953,3.59952109,199.5,199.46,8.44400472]
[1753213657130,5.01232221,199.51,199.46,12.73794021]
[1753213657131,3.59952109,199.49,199.46,12.73794021]
[1753213657335,17.54302242,199.51,199.47,12.73794021]
[1753213657336,3.59952109,199.48,199.47,12.73794021]
[1753213657636,8.61255497,199.48,199.47,12.73794021]
[1753213658361,8.61255497,199.48,199.46,12.73794021]
[1753213658534,3.59952109,199.47,199.46,12.73794021]
[1753213659240,3.59952109,199.47,199.43,0.68]
[1753213659444,3.59952109,199.46,199.44,12.73794021]
[1753213659635,8.613309,199.45,199.43,36.13794021]
[1753213659829,5.01378791,199.45,199.43,36.13794021]
[1753213660026,3.59925154,199.44,199.43,13.41794021]
[1753213660340,3.59925154,199.44,199.4,12.73794021]
[1753213660543,5.01378791,199.45,199.4,13.41794021]
[1753213660744,3.60116019,199.44,199.4,13.41794021]
[1753213660951,3.60116019,199.43,199.35,6.0384]
[1753213661135,3.60116019,199.42,199.37,12.73794021]
[1753213661339,3.60116019,199.42,199.38,12.73794021]
[1753213661665,5.01473813,199.42,199.38,13.41794021]
[1753213661831,5.01473813,199.42,199.36,22.7]
[1753213661832,8.61563827,199.42,199.36,22.7]
[1753213662031,12.73794021,199.4,199.34,12.73794021]
[1753213662257,12.73794021,199.37,199.32,0.68]
[1753213662434,3.60351524,199.36,199.31,12.73794021]
[1753213662639,3.60351524,199.35,199.3,1.6165]
[1753213662841,3.60351524,199.35,199.3,2.2965]
[1753213663056,3.60351524,199.36,199.3,2.2965]
[1753213663355,3.60351524,199.35,199.3,2.2965]
[1753213663563,5.01655463,199.34,199.31,0.68]
[1753213663734,5.01655463,199.34,199.27,0.68]
[1753213663931,12.73794021,199.32,199.27,0.68]
[1753213664134,12.73794021,199.3,199.24,36.07794021]
[1753213664534,12.73794021,199.3,199.24,23.34]
[1753213664743,3.60430749,199.29,199.24,0.68]
[1753213664949,16.3422477,199.28,199.23,1.5483]
[1753213665161,12.73794021,199.28,199.23,2.2283]
[1753213665331,26.0,199.3,199.25,12.73794021]
[1753213665536,8.62233179,199.29,199.25,13.41794021]
[1753213665871,12.73794021,199.28,199.23,1.5483]
[1753213666164,26.0,199.3,199.23,1.5483]
[1753213666165,26.0,199.3,199.26,12.73794021]
[1753213666459,31.01770069,199.3,199.27,0.68]
[1753213666645,43.7556409,199.3,199.23,2.2283]
[1753213666852,43.7556409,199.3,199.24,12.73794021]
[1753213667249,43.7556409,199.3,199.24,35.35794021]
[1753213667658,43.7556409,199.3,199.24,12.73794021]
[1753213667964,31.01770069,199.3,199.25,12.73794021]
[1753213668170,31.01770069,199.3,199.25,13.39794021]
[1753213669160,31.01770069,199.3,199.26,0.66]
[1753213669361,3.20914673,199.35,199.28,12.73794021]
[1753213669362,2.61914673,199.35,199.28,12.73794021]
[1753213669565,17.75425207,199.35,199.29,12.73794021]
[1753213669757,5.01605136,199.36,199.29,12.73794021]
[1753213670061,12.73794021,199.35,199.29,12.73794021]
[1753213670447,31.01605136,199.36,199.31,12.73794021]
[1753213670775,26.0,199.36,199.34,12.73794021]
[1753213670957,5.01557797,199.38,199.34,13.39794021]
[1753213671462,5.01557797,199.38,199.34,0.66]
[1753213671644,8.62147828,199.38,199.34,0.66]
[1753213672268,5.01557797,199.38,199.34,0.66]
[1753213672672,5.01557797,199.38,199.35,0.66]
[1753213673045,31.01532035,199.39,199.35,0.66]
[1753213673668,26.0,199.39,199.36,13.39794021]
[1753213673854,5.0145841,199.42,199.37,13.39794021]
[1753213674041,5.0145841,199.42,199.38,0.66]
[1753213674242,5.0145841,199.42,199.39,0.66]
[1753213674660,5.0145841,199.42,199.37,12.73794021]
[1753213675145,5.0145841,199.42,199.37,13.39794021]
[1753213676071,26.0,199.43,199.38,13.39794021]
[1753213676274,5.0132852,199.47,199.41,12.73794021]
[1753213676470,17.75122541,199.47,199.41,13.39794021]
[1753213676775,43.75122541,199.47,199.41,13.39794021]
[1753213676985,17.54649821,199.47,199.36,1.6408]
[1753213677143,8.45131643,199.4,199.32,6.493]
[1753213677344,26.59,199.43,199.33,30.95131643]
[1753213677546,8.45131643,199.39,199.33,0.66]
[1753213677778,8.45131643,199.37,199.31,9.11131643]
[1753213678750,0.59,199.45,199.33,16.78468397]
[1753213679051,7.63185266,199.44,199.34,0.66]
[1753213679248,8.45131643,199.41,199.35,8.45131643]
[1753213679451,8.45131643,199.42,199.36,9.11131643]
[1753213679967,8.45131643,199.43,199.37,8.45131643]
[1753213680166,5.01403931,199.44,199.37,8.45131643]
[1753213680383,13.46535574,199.44,199.38,8.45131643]
[1753213680561,2.61754843,199.45,199.34,23.24]
[1753213680562,2.61754843,199.45,199.41,8.45131643]
[1753213680761,5.01253132,199.5,199.44,8.45131643]
[1753213680943,8.51131643,199.52,199.47,8.45131643]
[1753213680944,5.01228008,199.51,199.47,8.45131643]
[1753213681143,5.01228008,199.51,199.45,0.66]
[1753213681343,8.45131643,199.5,199.45,0.66]
[1753213681582,26.0,199.47,199.43,8.45131643]
[1753213681769,8.45131643,199.47,199.42,1.6523]
[1753213681972,34.45131643,199.48,199.42,10.10361643]
[1753213682176,8.45131643,199.47,199.42,1.6523]
[1753213682485,26.0,199.48,199.43,8.45131643]
[1753213682683,26.0,199.46,199.43,9.11131643]
[1753213683096,31.01355264,199.46,199.43,0.66]
[1753213683380,31.01355264,199.46,199.42,10.10361643]
[1753213683588,31.01355264,199.46,199.42,1.6523]
[1753213684589,31.01355264,199.46,199.4,9.11131643]
[1753213684885,5.01479364,199.41,199.35,33.13691643]
[1753213685088,5.01479364,199.41,199.27,12.54573081]
[1753213685089,26.0,199.38,199.29,5.01764864]
[1753213685255,26.0,199.38,199.32,8.45131643]
[1753213685451,34.45131643,199.38,199.32,8.45131643]
[1753213685950,26.0,199.38,199.3,23.2]
[1753213686150,26.0,199.38,199.29,1.5056]
[1753213686151,8.45131643,199.34,199.29,1.5056]
[1753213686351,26.0,199.34,199.31,8.45131643]
[1753213686687,26.0,199.35,199.32,9.11131643]
[1753213686855,8.45131643,199.38,199.32,9.11131643]
[1753213686856,34.45131643,199.38,199.33,0.66]
[1753213687057,39.46708266,199.38,199.33,0.66]
[1753213687877,8.45131643,199.36,199.29,2.1656]
[1753213688063,34.45131643,199.35,199.29,1.5056]
[1753213688261,8.45131643,199.34,199.29,1.5056]
[1753213688676,0.59,199.37,199.29,1.5056]
[1753213688907,5.01576623,199.38,199.31,8.45131643]
[1753213689055,13.46661308,199.39,199.33,8.45131643]
[1753213689588,8.45131643,199.38,199.32,9.11131643]
[1753213689969,5.01529665,199.39,199.34,8.45131643]
[1753213690274,5.01403931,199.44,199.36,8.45131643]
[1753213690473,8.45131643,199.42,199.37,0.66]
[1753213690673,8.45131643,199.42,199.38,0.66]
[1753213690878,8.45131643,199.43,199.37,8.45131643]
[1753213691081,13.46535574,199.44,199.39,0.66]
[1753213691392,8.45131643,199.4,199.32,23.12]
[1753213691591,8.45131643,199.37,199.32,23.12]
[1753213691774,8.45131643,199.35,199.29,9.95691643]
[1753213691954,5.01655463,199.34,199.29,1.5056]
[1753213692160,8.45131643,199.33,199.29,1.5056]
[1753213692672,5.01655463,199.34,199.29,1.5056]
[1753213693057,8.45131643,199.33,199.29,1.5056]
[1753213694082,13.46843199,199.32,199.27,0.66]
[1753213694700,26.0,199.31,199.28,9.11131643]
[1753213694875,8.45131643,199.35,199.29,9.11131643]
[1753213695189,26.0,199.32,199.29,9.11131643]
[1753213695361,26.0,199.32,199.3,0.66]
[1753213695556,5.01624992,199.36,199.3,0.66]
[1753213696089,5.0168063,199.33,199.3,0.66]
[1753213696384,8.45131643,199.38,199.31,9.11131643]
[1753213696588,5.01548866,199.39,199.32,9.11131643]
[1753213696800,8.45131643,199.38,199.32,9.11131643]
[1753213696963,8.45131643,199.38,199.32,0.66]
[1753213697701,8.45131643,199.36,199.32,0.66]
[1753213697873,8.45131643,199.37,199.3,8.45131643]
[1753213698071,8.45131643,199.37,199.32,0.65]
[1753213698303,13.46689835,199.38,199.33,0.65]
[1753213698462,5.01534529,199.39,199.34,0.65]
[1753213698668,8.45131643,199.38,199.34,0.65]
[1753213698966,8.45131643,199.36,199.3,9.10131643]
[1753213699167,8.45131643,199.35,199.26,16.78468397]
[1753213699474,8.45131643,199.33,199.27,32.16131643]
[1753213699670,8.45131643,199.34,199.28,8.45131643]
[1753213699875,8.45131643,199.33,199.27,32.16131643]
[1753213700278,13.46761941,199.35,199.29,8.45131643]
[1753213700881,8.45131643,199.34,199.28,8.45131643]
[1753213701166,34.45131643,199.32,199.27,23.06]
[1753213701362,26.0,199.32,199.27,23.71]
[1753213701581,26.0,199.32,199.27,23.06]
[1753213701783,26.0,199.32,199.28,0.65]
[1753213702192,31.01714237,199.32,199.28,0.65]
[1753213702359,39.4684588,199.32,199.27,23.06]
[1753213702562,39.4684588,199.32,199.23,1.5888]
[1753213702563,8.45131643,199.28,199.23,1.5888]
[1753213702774,0.59,199.31,199.23,1.5888]
[1753213702775,8.45131643,199.27,199.23,1.5888]
[1753213703158,8.45131643,199.28,199.23,1.5888]
[1753213703362,8.45131643,199.28,199.23,2.2388]
[1753213703562,8.45131643,199.28,199.23,7.25810009]
[1753213703763,8.45131643,199.28,199.24,0.65]
[1753213704196,8.45131643,199.27,199.23,1.5888]
[1753213704863,8.45131643,199.25,199.19,23.0]
[1753213705066,8.45131643,199.22,199.19,23.0]
[1753213705282,8.45131643,199.23,199.19,23.0]
[1753213705593,11.07105099,199.29,199.22,8.45131643]
[1753213705806,13.46896069,199.3,199.23,5.66932439]
[1753213706097,5.01731924,199.31,199.24,8.45131643]
[1753213706335,26.0,199.3,199.25,8.45131643]
[1753213706783,26.0,199.3,199.25,9.10131643]
[1753213706987,2.61933699,199.34,199.25,9.10131643]
[1753213706988,8.45131643,199.33,199.27,8.45131643]
[1753213707175,8.45131643,199.34,199.28,0.65]
[1753213707370,8.45131643,199.33,199.28,0.65]
[1753213707689,8.45131643,199.32,199.26,8.45131643]
[1753213707892,13.46846566,199.32,199.26,8.45131643]
[1753213708073,13.46846566,199.32,199.25,28.03868067]
[1753213708266,13.46815362,199.33,199.27,8.45131643]
[1753213708682,5.01683719,199.33,199.28,8.45131643]
[1753213708888,5.01664776,199.34,199.28,8.45131643]